bitfinex-derivatives/quotes_BTCF0:USTF0_20241010
["timestamp","ask_amount","ask_price","bid_price","bid_amount"]
[1728565120660,0.082081,60980.0,60965.0,0.6488]
[1728565120853,0.082081,60980.0,60979.0,0.082081]
[1728565121049,0.43856,60985.0,60975.0,0.3608]
[1728565121050,0.4372,60985.0,60975.0,0.3608]
[1728565121253,0.4372,60985.0,60977.0,0.082083]
[1728565121254,0.082082,60978.0,60977.0,0.082083]
[1728565121756,0.28,60983.0,60975.0,0.3608]
[1728565121757,0.082085,60976.0,60975.0,0.3608]
[1728565121960,0.082085,60976.0,60975.0,0.442886]
[1728565122863,0.001,60978.0,60977.0,0.082084]
[1728565123163,0.082082,60979.0,60977.0,0.082084]
[1728565123359,0.082082,60979.0,60978.0,0.082082]
[1728565123565,0.001,60980.0,60975.0,0.442886]
[1728565123566,0.082085,60977.0,60975.0,0.442886]
[1728565123865,0.082085,60976.0,60975.0,0.3608]
[1728565124066,0.082092,60971.0,60970.0,0.082093]
[1728565124461,0.082085,60976.0,60973.0,0.082089]
[1728565124661,0.082085,60976.0,60975.0,0.005]
[1728565125368,0.28,60977.0,60973.0,0.082089]
[1728565125369,0.082088,60975.0,60973.0,0.082089]
[1728565126155,0.082088,60975.0,60973.0,0.007]
[1728565126353,0.082088,60975.0,60974.0,0.082088]
[1728565126560,0.083088,60975.0,60974.0,0.082088]
[1728565128056,0.084088,60975.0,60974.0,0.082088]
[1728565129367,0.084088,60975.0,60974.0,0.19549351]
[1728565129670,0.084088,60975.0,60974.0,0.27729886]
[1728565129871,0.084088,60975.0,60974.0,0.19549351]
[1728565133973,0.084088,60975.0,60974.0,0.1957526]
[1728565135168,0.084088,60975.0,60974.0,0.1136646]
[1728565135679,0.084088,60975.0,60974.0,0.21188185]
[1728565136473,0.084088,60975.0,60974.0,0.1136646]
[1728565137483,0.084088,60975.0,60971.0,0.09088185]
[1728565137484,0.08209,60972.0,60971.0,0.09088185]
[1728565137670,0.082099,60966.0,60965.0,0.443739]
[1728565137978,0.272099,60966.0,60965.0,0.57154466]
[1728565138172,0.272099,60966.0,60965.0,0.442899]
[1728565138565,0.272099,60966.0,60965.0,0.3608]
[1728565139073,0.19,60966.0,60965.0,0.3608]
[1728565139873,0.272099,60966.0,60965.0,0.4429]
[1728565140171,0.191,60966.0,60965.0,0.4429]
[1728565140375,0.001,60966.0,60965.0,0.4429]
[1728565140572,0.001,60972.0,60971.0,0.082092]
[1728565141363,0.082089,60974.0,60971.0,0.2090478]
[1728565141569,0.08209,60973.0,60972.0,0.082088]
[1728565143080,0.082086,60976.0,60975.0,0.082085]
[1728565144478,0.086086,60976.0,60975.0,0.082085]
[1728565144882,0.095086,60976.0,60975.0,0.082085]
[1728565145275,0.013,60976.0,60975.0,0.442885]
[1728565145469,0.3608,60994.0,60975.0,0.8528]
[1728565145470,0.0737,60992.0,60975.0,0.8528]
[1728565145672,0.082067,60990.0,60989.0,0.082067]
[1728565146781,0.082071,60987.0,60986.0,0.082071]
[1728565147875,0.084071,60987.0,60986.0,0.082071]
[1728565148686,0.084071,60987.0,60983.0,0.3608]
[1728565148687,0.082074,60984.0,60983.0,0.3608]
[1728565148885,0.082079,60981.0,60975.0,0.4365]
[1728565149181,0.082075,60984.0,60983.0,0.082076]
[1728565150279,0.082072,60986.0,60985.0,0.082072]
[1728565150788,0.001,60981.0,60980.0,0.44288]
[1728565151079,0.005,60987.0,60980.0,0.44288]
[1728565151279,0.005,60987.0,60986.0,0.082072]
[1728565151585,0.082068,60990.0,60985.0,0.3608]
[1728565151785,0.082068,60990.0,60989.0,0.082068]
[1728565153685,0.088068,60990.0,60989.0,0.082068]
[1728565153876,0.006,60990.0,60989.0,0.082068]
[1728565154284,0.082066,60990.0,60989.0,0.082068]
[1728565154487,0.087066,60990.0,60989.0,0.082068]
[1728565154872,0.096066,60990.0,60989.0,0.083068]
[1728565155878,0.091066,60990.0,60989.0,0.083068]
[1728565156073,0.096066,60990.0,60989.0,0.001]
[1728565158096,0.082069,60988.0,60987.0,0.08207]
[1728565159480,0.084069,60988.0,60987.0,0.08207]
[1728565160077,0.091069,60988.0,60987.0,0.08307]
[1728565160584,0.007,60988.0,60987.0,0.08307]
[1728565160784,0.009,60988.0,60987.0,0.08307]
[1728565160988,0.091069,60988.0,60987.0,0.08307]
[1728565161181,0.091069,60988.0,60987.0,0.001]
[1728565161583,0.091069,60988.0,60987.0,0.08307]
[1728565163381,0.089069,60988.0,60987.0,0.08307]
[1728565163588,0.091069,60988.0,60987.0,0.001]
[1728565164491,0.281069,60988.0,60987.0,0.001]
[1728565164886,0.281069,60988.0,60984.0,0.082073]
[1728565164887,0.274069,60988.0,60984.0,0.082073]
[1728565165087,0.281069,60988.0,60987.0,0.001]
[1728565165799,0.192,60988.0,60980.0,0.5508]
[1728565165989,0.082072,60986.0,60985.0,0.082071]
[1728565167096,0.001,60988.0,60987.0,0.08207]
[1728565167288,0.001,60988.0,60987.0,0.27207]
[1728565167695,0.001,60988.0,60987.0,0.45955361]
[1728565167892,0.001,60988.0,60987.0,0.26953552]
[1728565168197,0.001,60988.0,60987.0,0.08207]
[1728565168497,0.001,60988.0,60987.0,0.16396812]
[1728565169195,0.082067,60990.0,60987.0,0.08189812]
[1728565169388,0.082067,60990.0,60989.0,0.082068]
[1728565169992,0.19,60995.0,60988.0,0.08186634]
[1728565170187,0.3608,60996.0,60992.0,0.06549305]
[1728565170394,0.08206,60995.0,60994.0,0.08206]
[1728565171490,0.08206,60995.0,60994.0,0.14755305]
[1728565172108,0.09006,60995.0,60994.0,0.14755305]
[1728565172292,0.09006,60995.0,60994.0,0.08206]
[1728565172493,0.10006,60995.0,60994.0,0.08206]
[1728565173098,0.018,60995.0,60994.0,0.08206]
[1728565173294,0.024,60995.0,60994.0,0.08306]
[1728565173699,0.10606,60995.0,60994.0,0.08306]
[1728565174499,0.024,60995.0,60994.0,0.08306]
[1728565175699,0.10606,60995.0,60994.0,0.08306]
[1728565177593,0.29606,60995.0,60994.0,0.08306]
[1728565177995,0.29606,60995.0,60994.0,0.001]
[1728565178494,0.29606,60995.0,60994.0,0.083061]
[1728565179204,0.10606,60995.0,60994.0,0.083061]
[1728565179589,0.024,60995.0,60994.0,0.083061]
[1728565181407,0.024,60995.0,60994.0,0.18871136]
[1728565182305,0.024,60995.0,60994.0,0.27001136]
[1728565182604,0.024,60995.0,60994.0,0.39573408]
[1728565182903,0.632842,61008.0,61007.0,0.082043]
[1728565184305,0.3608,61008.0,61007.0,0.082043]
[1728565184516,0.272039,61011.0,61010.0,0.082039]
[1728565184517,0.082039,61011.0,61010.0,0.082039]
[1728565184699,0.082039,61011.0,61010.0,0.14756061]
[1728565185004,0.082039,61011.0,61010.0,0.082039]
[1728565185206,0.082035,61014.0,61011.0,0.082038]
[1728565185405,0.082032,61016.0,61015.0,0.082029]
[1728565185706,0.082032,61016.0,61015.0,0.14751591]
[1728565186204,0.082032,61016.0,61015.0,0.082029]
[1728565186508,0.272032,61016.0,61015.0,0.082029]
[1728565186903,0.280032,61016.0,61015.0,0.083029]
[1728565187903,0.285032,61016.0,61015.0,0.084029]
[1728565188303,0.32791935,61016.0,61015.0,0.083029]
[1728565188505,0.33191935,61016.0,61015.0,0.084029]
[1728565188694,0.3269193,61016.0,61015.0,0.083029]
[1728565189010,0.3229193,61016.0,61015.0,0.083029]
[1728565190297,0.3229082,61016.0,61015.0,0.083029]
[1728565190897,0.3229082,61016.0,61015.0,0.04015374]
[1728565191401,0.3229082,61016.0,61015.0,0.001]
[1728565191902,1.7753882,61016.0,61015.0,0.001]
[1728565192102,0.272046,61005.0,61004.0,0.442847]
[1728565192507,0.082046,61005.0,61004.0,0.442847]
[1728565193696,0.272042,61008.0,61007.0,0.082043]
[1728565193897,0.31420381,61008.0,61007.0,0.082043]
[1728565195405,0.32020381,61008.0,61007.0,0.001]
[1728565195603,0.32320381,61008.0,61007.0,0.001]
[1728565196412,0.281042,61008.0,61007.0,0.083043]
[1728565196612,0.281042,61008.0,61007.0,0.001]
[1728565197510,0.275042,61008.0,61005.0,0.082046]
[1728565197812,0.082045,61006.0,61005.0,0.082046]
[1728565198611,0.082047,61004.0,61003.0,0.3608]
[1728565198817,0.19,61004.0,61002.0,0.082049]
[1728565199010,0.082049,61003.0,61002.0,0.082049]
[1728565199516,0.082049,61003.0,60991.0,0.4387]
[1728565199517,0.082061,60995.0,60994.0,0.08206]
[1728565200315,0.19,60999.0,60991.0,0.3608]
[1728565200519,0.082057,60998.0,60997.0,0.082055]
[1728565200814,0.3608,61000.0,60993.0,0.082062]
[1728565201017,0.082056,60998.0,60994.0,0.19]
[1728565201216,0.08206,60995.0,60994.0,0.19]
[1728565201515,0.08206,60995.0,60991.0,0.3608]
[1728565201719,0.19,60996.0,60991.0,0.3608]
[1728565202021,0.08206,60995.0,60994.0,0.08206]
[1728565202319,0.08306,60995.0,60994.0,0.008]
[1728565202618,0.082075,60984.0,60983.0,0.082076]
[1728565202836,0.082081,60979.0,60978.0,0.3608]
[1728565203119,0.272081,60979.0,60978.0,0.3608]
[1728565203515,0.272081,60979.0,60975.0,0.082086]
[1728565203516,0.19,60979.0,60975.0,0.082086]
[1728565203719,0.19,60976.0,60972.0,0.08209]
[1728565204019,0.272089,60973.0,60972.0,0.08209]
[1728565204315,0.272089,60973.0,60967.0,0.3608]
[1728565204316,0.19,60973.0,60967.0,0.42628691]
[1728565204521,0.082085,60976.0,60967.0,0.3608]
[1728565204829,0.11314707,61012.0,60977.0,0.082084]
[1728565204830,0.19,60988.0,60977.0,0.082084]
[1728565205014,0.19,60988.0,60972.0,0.3608]
[1728565205015,0.082074,60985.0,60983.0,0.082076]
[1728565205322,0.19,60988.0,60983.0,0.082076]
[1728565205626,0.442874,60984.0,60983.0,0.082076]
[1728565205935,0.442874,60984.0,60978.0,0.194]
[1728565205936,0.082077,60982.0,60981.0,0.082078]
[1728565209122,0.083077,60982.0,60981.0,0.082078]
[1728565210839,0.082082,60979.0,60978.0,0.08208]
[1728565213133,0.083082,60979.0,60978.0,0.08608]
[1728565213333,0.083082,60979.0,60978.0,0.08808]
[1728565214741,0.083082,60979.0,60978.0,0.006]
[1728565215344,0.082093,60970.0,60969.0,0.082094]
[1728565215533,0.082093,60970.0,60966.0,0.082098]
[1728565215534,0.082099,60967.0,60966.0,0.082098]
[1728565215734,0.272099,60967.0,60966.0,0.082098]
[1728565215934,0.272099,60967.0,60965.0,0.3608]
[1728565215935,0.082099,60966.0,60965.0,0.3608]
[1728565216148,0.082096,60968.0,60965.0,0.3608]
[1728565216337,0.164194,60968.0,60967.0,0.082097]
[1728565216650,0.082096,60968.0,60967.0,0.082097]
[1728565219032,0.083096,60968.0,60967.0,0.082097]
[1728565219637,0.273096,60968.0,60963.0,0.082102]
[1728565219841,0.444896,60968.0,60967.0,0.013]
[1728565220150,0.634896,60968.0,60967.0,0.013]
[1728565220539,0.444896,60968.0,60967.0,0.013]
[1728565220850,0.3628,60968.0,60967.0,0.095097]
[1728565221141,0.002,60968.0,60967.0,0.082097]
[1728565221333,0.36224,60973.0,60967.0,0.082097]
[1728565221651,0.36224,60973.0,60972.0,0.08209]
[1728565221652,0.442889,60973.0,60972.0,0.08209]
[1728565221942,0.082094,60971.0,60970.0,0.082092]
[1728565223535,0.083094,60971.0,60970.0,0.083092]
[1728565223938,0.001,60971.0,60970.0,0.083092]
[1728565224134,0.082075,60984.0,60970.0,0.083092]
[1728565224135,0.082081,60979.0,60978.0,0.082078]
[1728565224345,0.082081,60979.0,60978.0,0.272078]
[1728565224734,0.082081,60979.0,60978.0,0.082078]
[1728565225049,0.082086,60976.0,60975.0,0.082085]
[1728565225238,0.082081,60979.0,60978.0,0.082082]
[1728565225844,0.19,60983.0,60974.0,0.19]
[1728565226145,0.19,60987.0,60981.0,0.082078]
[1728565226340,0.082077,60983.0,60981.0,0.082078]
[1728565227049,0.082077,60983.0,60982.0,0.082077]
[1728565228146,0.442868,60989.0,60988.0,0.082069]
[1728565228341,0.19,60997.0,60990.0,0.082065]
[1728565228644,0.082062,60994.0,60992.0,0.082062]
[1728565229039,0.082062,60993.0,60992.0,0.082062]
[1728565230344,0.19,60994.0,60992.0,0.082062]
[1728565230539,0.082059,60996.0,60989.0,0.19]
[1728565230752,0.007,60993.0,60992.0,0.273064]
[1728565231654,0.442848,61004.0,60998.0,0.082055]
[1728565231854,0.082053,61000.0,60998.0,0.082055]
[1728565232353,0.082053,61000.0,60999.0,0.082054]
[1728565232646,0.19,61003.0,61001.0,0.082051]
[1728565232852,0.19,61003.0,60997.0,0.19]
[1728565233055,0.3608,61004.0,60997.0,0.082057]
[1728565233056,0.272054,60999.0,60997.0,0.082057]
[1728565233349,0.272054,60999.0,60992.0,0.3618]
[1728565233350,0.082062,60993.0,60992.0,0.3618]
[1728565233540,0.082062,60993.0,60992.0,0.001]
[1728565233541,0.12360011,60993.0,60992.0,0.001]
[1728565233747,0.15468518,60993.0,60982.0,0.3608]
[1728565234050,0.15468518,60993.0,60982.0,0.442877]
[1728565234051,0.19,60983.0,60982.0,0.442877]
[1728565234650,0.272076,60983.0,60982.0,0.3608]
[1728565235445,0.272076,60983.0,60982.0,0.442877]
[1728565235446,0.19,60983.0,60982.0,0.442877]
[1728565235856,0.19,60983.0,60982.0,0.444877]
[1728565236056,0.11308969,60990.0,60982.0,0.3628]
[1728565236057,0.19,60986.0,60982.0,0.3628]
[1728565236246,0.11308969,60991.0,60989.0,0.082068]
[1728565236447,0.19,60992.0,60989.0,0.082068]
[1728565236448,0.04100379,60990.0,60989.0,0.082068]
[1728565236652,0.082063,60993.0,60991.0,0.082065]
[1728565236853,0.04120304,60992.0,60991.0,0.082065]
[1728565237557,0.082063,60993.0,60991.0,0.082065]
[1728565237558,0.272063,60993.0,60991.0,0.082065]
[1728565237759,0.272063,60993.0,60992.0,0.082064]
[1728565237963,0.31332985,60993.0,60992.0,0.082064]
[1728565238259,0.082068,60989.0,60988.0,0.442869]
[1728565238467,0.272068,60989.0,60988.0,0.442869]
[1728565238954,0.31325823,60989.0,60988.0,0.082069]
[1728565239959,0.31725823,60989.0,60988.0,0.082069]
[1728565241062,0.04519023,60989.0,60988.0,0.082069]
[1728565241265,0.004,60989.0,60988.0,0.082069]
[1728565242650,0.006,60989.0,60988.0,0.082069]
[1728565243863,0.088068,60989.0,60988.0,0.082069]
[1728565244258,0.088068,60989.0,60982.0,0.59986902]
[1728565244259,0.3668,60989.0,60982.0,0.3608]
[1728565244562,0.3668,60989.0,60984.0,0.082073]
[1728565244751,0.19,60985.0,60984.0,0.082073]
[1728565245459,0.272073,60985.0,60984.0,0.082073]
[1728565245849,0.08207,60988.0,60987.0,0.08207]
[1728565246058,0.3628,60989.0,60988.0,0.082069]
[1728565246059,0.3608,60989.0,60988.0,0.082069]
[1728565246362,0.442861,60994.0,60993.0,0.082062]
[1728565246558,0.3524,61000.0,60992.0,0.19]
[1728565246754,0.0784,61000.0,60992.0,0.19]
[1728565246964,0.082045,61006.0,60996.0,0.19]
[1728565246965,0.3608,61006.0,60996.0,0.19]
[1728565247152,0.3608,61006.0,60994.0,0.3608]
[1728565247153,0.3608,61006.0,61005.0,0.272046]
[1728565247363,0.082038,61012.0,61010.0,0.082039]
[1728565247660,0.082038,61012.0,61011.0,0.082038]
[1728565248247,0.082033,61015.0,61012.0,0.082037]
[1728565248457,0.62950001,61016.0,61015.0,0.082033]
[1728565248458,0.36224,61016.0,61015.0,0.082033]
[1728565248657,0.3608,61016.0,61015.0,0.04040336]
[1728565248853,0.48491702,61016.0,61015.0,0.04040336]
[1728565249064,0.014,61012.0,61011.0,0.082037]
[1728565249650,0.082034,61014.0,61013.0,0.082035]
[1728565250382,0.016,61016.0,61015.0,0.082033]
[1728565250871,0.016,61016.0,61015.0,0.272033]
[1728565251565,0.002,61016.0,61015.0,0.272033]
[1728565251756,0.002,61016.0,61015.0,0.082033]
[1728565252066,0.014,61016.0,61013.0,0.001]
[1728565252263,0.014,61016.0,61015.0,0.082033]
[1728565252865,0.016,61016.0,61015.0,0.083033]
[1728565253163,0.288031,61016.0,61015.0,0.001]
[1728565253856,0.098031,61016.0,61015.0,0.001]
[1728565254177,0.016,61016.0,61015.0,0.273033]
[1728565255265,0.002,61016.0,61015.0,0.273033]
[1728565255465,0.016,61016.0,61015.0,0.273033]
[1728565260665,0.206,61016.0,61015.0,0.083033]
[1728565260964,0.016,61016.0,61015.0,0.083033]
[1728565261467,0.098031,61016.0,61015.0,0.083033]
[1728565261666,0.098031,61016.0,61015.0,0.001]
[1728565261667,0.288031,61016.0,61015.0,0.001]
[1728565262063,0.288031,61016.0,61015.0,0.083033]
[1728565262365,0.288031,61016.0,61015.0,0.001]
[1728565263769,0.288031,61016.0,61008.0,0.19]
[1728565263770,0.082035,61014.0,61008.0,0.19]
[1728565263962,0.15457648,61013.0,61012.0,0.082036]
[1728565264764,0.04172792,61013.0,61012.0,0.082036]
[1728565265162,0.15457648,61013.0,61012.0,0.082036]
[1728565265565,0.16857648,61013.0,61012.0,0.082036]
[1728565265777,0.16857648,61013.0,61008.0,0.083041]
[1728565265778,0.082041,61009.0,61008.0,0.083041]
[1728565265966,0.31307546,61009.0,61008.0,0.082041]
[1728565266166,0.082043,61007.0,61000.0,0.082052]
[1728565266373,0.082043,61007.0,60999.0,0.00245889]
[1728565266374,0.082053,61000.0,60999.0,0.00245889]
[1728565266567,0.28293133,61000.0,60999.0,0.00245889]
[1728565266871,0.25194049,61000.0,60999.0,0.00245889]
[1728565268767,0.31790842,61000.0,60999.0,0.00245889]
[1728565268963,0.20498746,61000.0,60999.0,0.00245889]
[1728565269170,0.25682882,61000.0,60999.0,0.00245889]
[1728565270276,0.25682882,61000.0,60988.0,0.0189937]
[1728565270277,0.082067,60990.0,60989.0,0.082067]
[1728565270479,0.082072,60986.0,60979.0,0.382929]
[1728565270673,0.04103446,60985.0,60984.0,0.082074]
[1728565271171,0.04103446,60985.0,60984.0,0.272074]
[1728565271471,0.11294427,60991.0,60984.0,1.724794]
[1728565271672,0.082056,60998.0,60991.0,0.082065]
[1728565271876,0.082057,60997.0,60996.0,0.082058]
[1728565272076,0.082057,60997.0,60984.0,0.3608]
[1728565272077,0.082066,60990.0,60988.0,0.082069]
[1728565272278,0.082066,60990.0,60989.0,0.082068]
[1728565272664,0.082071,60987.0,60985.0,0.082072]
[1728565272869,0.19,60991.0,60985.0,0.082073]
[1728565272870,0.082072,60986.0,60985.0,0.082073]
[1728565273064,0.3608,60990.0,60984.0,0.003]
[1728565273065,0.082073,60985.0,60984.0,0.003]
[1728565273273,0.082079,60981.0,60980.0,0.082079]
[1728565273470,0.272079,60981.0,60980.0,0.082079]
[1728565273867,0.08208,60980.0,60978.0,0.3608]
[1728565274164,0.08208,60980.0,60974.0,0.082086]
[1728565274481,0.19,60981.0,60969.0,0.19]
[1728565274482,0.082083,60978.0,60969.0,0.19]
[1728565274781,0.082083,60978.0,60967.0,0.3608]
[1728565274782,0.082086,60975.0,60974.0,0.082087]
[1728565275671,0.082088,60974.0,60971.0,0.082092]
[1728565275876,0.082084,60977.0,60971.0,0.082092]
[1728565276076,0.082089,60974.0,60971.0,0.082092]
[1728565276279,0.082089,60974.0,60967.0,0.3608]
[1728565276280,0.082093,60970.0,60967.0,0.442896]
[1728565276580,0.082093,60970.0,60969.0,0.082095]
[1728565277476,0.082093,60970.0,60959.0,0.18225813]
[1728565277477,0.19,60971.0,60963.0,0.082102]
[1728565277677,0.19,60964.0,60956.0,0.00246063]
[1728565277885,0.082102,60964.0,60961.0,0.082104]
[1728565278087,0.19,60962.0,60961.0,0.082104]
[1728565279081,0.3608,60968.0,60959.0,0.19]
[1728565279283,0.3608,60968.0,60957.0,0.3608]
[1728565279284,0.3608,60968.0,60967.0,0.082097]
[1728565280379,0.3608,60973.0,60966.0,0.19]
[1728565280586,0.3608,60973.0,60961.0,0.003]
[1728565280587,0.082092,60971.0,60970.0,0.082093]
[1728565280880,0.082092,60971.0,60969.0,0.19]
[1728565280881,0.3608,60973.0,60972.0,0.08209]
[1728565281086,0.3608,60973.0,60972.0,0.27209]
[1728565281985,0.36220001,60980.0,60979.0,0.082081]
[1728565282191,0.19,60986.0,60975.0,0.19]
[1728565282395,0.082077,60982.0,60979.0,0.08208]
[1728565283194,0.008,60980.0,60979.0,0.08208]
[1728565283490,0.198,60980.0,60975.0,0.082085]
[1728565283791,0.082089,60973.0,60972.0,0.443809]
[1728565284085,0.272089,60973.0,60972.0,0.442889]
[1728565284286,0.19,60973.0,60972.0,0.442889]
[1728565284478,0.272081,60979.0,60976.0,0.082085]
[1728565284783,0.082083,60978.0,60976.0,0.082085]
[1728565285089,0.082084,60977.0,60976.0,0.082085]
[1728565286393,0.086084,60977.0,60976.0,0.083085]
[1728565286893,0.091084,60977.0,60976.0,0.083085]
[1728565287987,0.451884,60977.0,60976.0,0.001]
[1728565288287,0.3698,60977.0,60976.0,0.083085]
[1728565289395,0.451884,60977.0,60976.0,0.083085]
[1728565290088,0.451884,60977.0,60976.0,0.001]
[1728565290792,0.641884,60977.0,60976.0,0.001]
[1728565291682,0.451884,60977.0,60976.0,0.001]
[1728565292082,0.082101,60964.0,60963.0,0.082101]
[1728565292292,0.272101,60964.0,60963.0,0.082101]
[1728565292596,0.082101,60964.0,60963.0,0.082101]
[1728565293290,0.082101,60964.0,60963.0,0.088101]
[1728565293491,0.083101,60964.0,60963.0,0.091101]
[1728565294398,0.001,60964.0,60963.0,0.091101]
[1728565295001,0.3608,60972.0,60963.0,0.281101]
[1728565295184,0.3608,60972.0,60968.0,0.19]
[1728565295380,0.3608,60972.0,60963.0,0.091101]
[1728565295381,0.3608,60972.0,60971.0,0.272092]
[1728565295587,0.44289,60972.0,60971.0,0.082092]
[1728565295907,0.3608,60972.0,60971.0,0.082092]
[1728565296196,0.082096,60968.0,60965.0,0.0821]
[1728565296398,0.19,60970.0,60966.0,0.082098]
[1728565296697,0.082097,60967.0,60966.0,0.082098]
[1728565296995,0.272093,60970.0,60968.0,0.082095]
[1728565297482,0.082095,60969.0,60968.0,0.082095]
[1728565298094,0.19,60970.0,60963.0,0.006]
[1728565298095,0.082098,60967.0,60966.0,0.082097]
[1728565298799,0.001,60968.0,60967.0,0.082097]
[1728565298998,0.083096,60968.0,60967.0,0.082097]
[1728565299188,0.082096,60968.0,60967.0,0.082097]
[1728565299797,0.082097,60967.0,60966.0,0.003]
[1728565299992,0.082097,60967.0,60966.0,0.085099]
[1728565300387,0.082097,60967.0,60966.0,0.082099]
[1728565300795,0.082097,60967.0,60961.0,0.23906902]
[1728565301096,0.082104,60962.0,60961.0,0.13117302]
[1728565301501,0.19,60963.0,60959.0,0.1635]
[1728565301502,0.19,60963.0,60962.0,0.082104]
[1728565301887,0.083098,60967.0,60965.0,0.082099]
[1728565302092,0.082099,60966.0,60965.0,0.082099]
[1728565303893,0.082103,60963.0,60962.0,0.004]
[1728565304098,0.082103,60963.0,60962.0,0.086104]
[1728565304292,0.082103,60963.0,60962.0,0.082104]
[1728565304902,0.001,60966.0,60962.0,0.5508]
[1728565305098,0.001,60966.0,60965.0,0.2721]
[1728565305301,0.001,60966.0,60965.0,0.76418]
[1728565305514,0.3608,60977.0,60974.0,0.082088]
[1728565305799,0.3608,60977.0,60975.0,0.19]
[1728565305998,0.3608,60977.0,60971.0,0.272091]
[1728565306203,0.082085,60976.0,60971.0,0.272091]
[1728565306791,0.082085,60976.0,60971.0,0.082091]
[1728565306792,0.19,60976.0,60971.0,0.082091]
[1728565307100,0.19,60972.0,60969.0,0.3608]
[1728565307402,0.19,60972.0,60965.0,0.19]
[1728565307603,0.19,60972.0,60969.0,0.082094]
[1728565308194,0.002,60976.0,60965.0,0.20873439]
[1728565308195,0.19,60975.0,60965.0,0.20873439]
[1728565308395,0.3638,60977.0,60971.0,0.19]
[1728565308396,0.445884,60977.0,60971.0,0.19]
[1728565308597,0.5508,60972.0,60959.0,0.19]
[1728565308796,0.082097,60967.0,60966.0,0.04906902]
[1728565309002,0.082097,60967.0,60961.0,0.04906902]
[1728565309200,0.082097,60967.0,60959.0,0.01927292]
[1728565309201,0.19,60965.0,60963.0,0.04906902]
[1728565309394,0.082097,60967.0,60963.0,0.04906902]
[1728565309708,0.082097,60967.0,60960.0,0.25548691]
[1728565309709,0.082097,60967.0,60964.0,0.0821]
[1728565310201,0.19,60966.0,60965.0,0.004]
[1728565310404,0.272099,60966.0,60965.0,0.008]
[1728565310697,0.272099,60966.0,60965.0,0.0901]
[1728565311204,0.272099,60966.0,60965.0,0.0821]
[1728565311505,0.001,60967.0,60966.0,0.082099]
[1728565311811,0.082096,60968.0,60967.0,0.082097]
[1728565313010,0.082099,60966.0,60965.0,0.090099]
[1728565313410,0.272099,60966.0,60965.0,0.004]
[1728565313797,0.0821,60965.0,60958.0,0.13216902]
[1728565314117,0.0821,60965.0,60961.0,0.082105]
[1728565314118,0.272104,60962.0,60961.0,0.082105]
[1728565314407,0.19,60962.0,60961.0,0.082105]
[1728565314608,0.2721,60965.0,60962.0,0.082104]
[1728565314804,0.19,60965.0,60962.0,0.082104]
[1728565315010,0.082102,60964.0,60962.0,0.082104]
[1728565315398,0.082102,60964.0,60963.0,0.082103]
[1728565316705,0.082104,60962.0,60961.0,0.086104]
[1728565316903,0.082104,60962.0,60961.0,0.27619526]
[1728565317098,0.082104,60962.0,60961.0,0.27216934]
[1728565317313,0.001,60964.0,60963.0,0.082103]
[1728565317713,0.001,60964.0,60963.0,0.092103]
[1728565318204,0.2721,60965.0,60963.0,0.088103]
[1728565318405,0.082101,60964.0,60963.0,0.088103]
[1728565318905,0.082101,60964.0,60963.0,0.006]
[1728565319915,0.083101,60964.0,60963.0,0.092103]
[1728565320108,0.083101,60964.0,60963.0,0.01]
[1728565321407,0.083101,60964.0,60963.0,0.004]
[1728565321710,0.083101,60964.0,60963.0,0.01]
[1728565323415,0.443901,60964.0,60963.0,0.01]
[1728565323711,0.443901,60964.0,60963.0,0.07560841]
[1728565323910,0.48294878,60964.0,60963.0,0.01]
[1728565324310,0.84374878,60964.0,60963.0,0.01]
[1728565324509,1.52582878,60964.0,60963.0,0.01]
[1728565324719,1.52582878,60964.0,60944.0,0.082127]
[1728565324720,2.18867745,60964.0,60944.0,0.082127]
[1728565324909,2.18867745,60964.0,60941.0,0.0838]
[1728565324910,0.19,60945.0,60941.0,0.0838]
[1728565325107,0.442931,60942.0,60941.0,0.0838]
[1728565325611,0.082135,60939.0,60938.0,0.0773]
[1728565327203,0.083135,60939.0,60938.0,0.0783]
[1728565328316,0.001,60939.0,60938.0,0.0783]
[1728565328519,0.001,60939.0,60938.0,0.170436]
[1728565328520,0.002,60939.0,60938.0,0.170436]
[1728565328712,0.002,60939.0,60938.0,1.262716]
[1728565330616,0.082125,60947.0,60938.0,1.18058]
[1728565330913,0.5508,60956.0,60946.0,0.25560841]
[1728565331126,0.082108,60960.0,60950.0,0.04904166]
[1728565331127,0.082119,60951.0,60950.0,0.04904166]
[1728565331309,0.082114,60955.0,60951.0,0.082118]
[1728565331508,0.082113,60956.0,60954.0,0.04903264]
[1728565331912,0.082113,60955.0,60954.0,0.04903264]
[1728565332419,0.1586,60963.0,60952.0,0.06537686]
[1728565332420,0.082116,60953.0,60952.0,0.06537686]
[1728565332609,0.082119,60951.0,60950.0,0.06537686]
[1728565333405,0.08212,60950.0,60949.0,0.06537686]
[1728565333905,0.08212,60950.0,60949.0,0.04903444]
[1728565334223,0.082123,60948.0,60947.0,0.04903444]
[1728565334719,0.082124,60947.0,60946.0,0.04903584]
[1728565335311,0.082124,60947.0,60945.0,0.082126]
[1728565335615,0.082124,60947.0,60945.0,0.14750403]
[1728565335820,0.082124,60947.0,60945.0,0.06537803]